[Event "9e Open International de Porticcio"]
[Site "Porticcio, France"]
[Date "2024.07.04"]
[Round "8.4"]
[White "Clarke, Brandon G I"]
[Black "Kuru, Atilla"]
[Result "1-0"]
[TimeControl "1h30+30s/move"]
[WhiteElo "2498"]
[BlackElo "2314"]

1. e4 {[%clk 01:30:32]} {[%emt 00:00:27]} d6 {[%clk 01:22:52]} {[%emt
00:08:09]} 2. d4 {[%clk 01:30:29]} {[%emt 00:00:32]} Nf6 {[%clk 01:23:15]}
{[%emt 00:00:06]} 3. Nc3 {[%clk 01:30:49]} {[%emt 00:00:11]} e5 {[%clk
01:23:40]} {[%emt 00:00:05]} 4. Nf3 {[%clk 01:30:59]} {[%emt 00:00:21]} Nbd7
{[%clk 01:24:05]} {[%emt 00:00:06]} 5. g4 {[%clk 01:28:40]} {[%emt 00:02:48]}
Nxg4 {[%clk 01:03:54]} {[%emt 00:20:41]} 6. Rg1 {[%clk 01:29:08]} {[%emt
00:00:02]} exd4 {[%clk 00:59:01]} {[%emt 00:05:23]} 7. Nxd4 {[%clk 01:26:06]}
{[%emt 00:03:31]} Nde5 {[%clk 00:55:42]} {[%emt 00:03:49]} 8. h3 {[%clk
01:24:44]} {[%emt 00:01:52]} Nf6 {[%clk 00:55:41]} {[%emt 00:00:31]} 9. f4
{[%clk 01:20:25]} {[%emt 00:04:50]} Nc6 {[%clk 00:45:19]} {[%emt 00:10:52]} 10.
Be3 {[%clk 01:19:14]} {[%emt 00:01:42]} g6 {[%clk 00:43:29]} {[%emt 00:02:19]}
11. Bb5 {[%clk 01:07:39]} {[%emt 00:12:05]} Bd7 {[%clk 00:42:34]} {[%emt
00:01:25]} 12. Qf3 {[%clk 01:07:29]} {[%emt 00:00:41]} Bh6 {[%clk 00:20:51]}
{[%emt 00:22:13]} 13. e5 {[%clk 00:47:03]} {[%emt 00:20:56]} Nxd4 {[%clk
00:14:51]} {[%emt 00:06:30]} 14. Bxd4 {[%clk 00:45:40]} {[%emt 00:01:53]} Bxb5
{[%clk 00:15:14]} {[%emt 00:00:06]} 15. exf6 {[%clk 00:29:50]} {[%emt
00:16:20]} Bd7 {[%clk 00:14:15]} {[%emt 00:01:28]} 16. Nd5 {[%clk 00:24:06]}
{[%emt 00:06:15]} c6 {[%clk 00:12:08]} {[%emt 00:02:38]} 17. Ne3 {[%clk
00:15:38]} {[%emt 00:08:58]} Qa5+ {[%clk 00:11:53]} {[%emt 00:00:45]} 18. Bc3
{[%clk 00:14:03]} {[%emt 00:02:05]} Qa4 {[%clk 00:12:17]} {[%emt 00:00:05]} 19.
Rf1 {[%clk 00:12:46]} {[%emt 00:01:47]} O-O-O {[%clk 00:12:30]} {[%emt
00:00:17]} 20. b3 {[%clk 00:12:21]} {[%emt 00:00:55]} Qa3 {[%clk 00:11:20]}
{[%emt 00:01:40]} 21. Rd1 {[%clk 00:06:50]} {[%emt 00:06:01]} Rhe8 {[%clk
00:11:09]} {[%emt 00:00:41]} 22. Kf2 {[%clk 00:07:14]} {[%emt 00:00:06]} d5
{[%clk 00:07:38]} {[%emt 00:04:01]} 23. Be5 {[%clk 00:04:26]} {[%emt 00:03:17]}
Qc5 {[%clk 00:08:05]} {[%emt 00:00:03]} 24. Qg3 {[%clk 00:04:02]} {[%emt
00:00:55]} Bf5 {[%clk 00:05:47]} {[%emt 00:02:48]} 25. c3 {[%clk 00:04:31]}
{[%emt 00:00:01]} a5 {[%clk 00:05:01]} {[%emt 00:01:15]} 26. Rfe1 {[%clk
00:04:47]} {[%emt 00:00:13]} Bf8 {[%clk 00:03:47]} {[%emt 00:01:45]} 27. Bd4
{[%clk 00:04:44]} {[%emt 00:00:33]} Qa3 {[%clk 00:04:15]} {[%emt 00:00:01]} 28.
Rd2 {[%clk 00:03:34]} {[%emt 00:01:40]} Be6 {[%clk 00:02:52]} {[%emt 00:01:53]}
29. Ng4 {[%clk 00:02:47]} {[%emt 00:01:17]} h5 {[%clk 00:02:46]} {[%emt
00:00:36]} 30. Ne5 {[%clk 00:03:11]} {[%emt 00:00:06]} c5 {[%clk 00:02:23]}
{[%emt 00:00:52]} 31. Be3 {[%clk 00:03:34]} {[%emt 00:00:07]} a4 {[%clk
00:02:45]} {[%emt 00:00:08]} 32. Rb1 {[%clk 00:02:18]} {[%emt 00:01:46]} axb3
{[%clk 00:02:00]} {[%emt 00:01:16]} 33. Rxb3 {[%clk 00:02:09]} {[%emt
00:00:38]} Qa6 {[%clk 00:02:28]} {[%emt 00:00:02]} 34. Rbb2 {[%clk 00:01:07]}
{[%emt 00:01:33]} Bd6 {[%clk 00:02:22]} {[%emt 00:00:36]} 35. Kg1 {[%clk
00:01:25]} {[%emt 00:00:12]} Kc7 {[%clk 00:02:33]} {[%emt 00:00:19]} 36. h4
{[%clk 00:01:43]} {[%emt 00:00:12]} Qa5 {[%clk 00:02:31]} {[%emt 00:00:32]} 37.
Bf2 {[%clk 00:01:49]} {[%emt 00:00:23]} Ra8 {[%clk 00:02:11]} {[%emt 00:00:50]}
38. Qf3 {[%clk 00:01:57]} {[%emt 00:00:23]} Bxe5 {[%clk 00:01:45]} {[%emt
00:00:55]} 39. fxe5 {[%clk 00:02:25]} {[%emt 00:00:02]} Red8 {[%clk 00:02:04]}
{[%emt 00:00:11]} 40. c4 {[%clk 00:02:07]} {[%emt 00:00:47]} Kc6 {[%clk
00:01:27]} {[%emt 00:01:07]} 41. Rd3 {[%clk 00:01:33]} {[%emt 00:01:04]} Rd7
{[%clk 00:01:25]} {[%emt 00:00:32]} 42. Rb5 {[%clk 00:01:49]} {[%emt 00:00:14]}
Qxb5 {[%clk 00:00:55]} {[%emt 00:01:00]} 43. cxb5+ {[%clk 00:02:18]} {[%emt
00:00:02]} Kxb5 {[%clk 00:01:24]} {[%emt 00:00:01]} 44. Rb3+ {[%clk 00:02:11]}
{[%emt 00:00:36]} Kc6 {[%clk 00:01:53]} {[%emt 00:00:01]} 45. Bxc5 {[%clk
00:02:20]} {[%emt 00:00:21]} Rxa2 {[%clk 00:01:31]} {[%emt 00:00:51]} 46. Qc3
{[%clk 00:02:12]} {[%emt 00:00:38]} Ra4 {[%clk 00:01:25]} {[%emt 00:00:36]} 47.
Bd4+ {[%clk 00:00:43]} {[%emt 00:01:59]} Rc4 {[%clk 00:01:14]} {[%emt
00:00:41]} 48. Qa5 {[%clk 00:01:11]} {[%emt 00:00:02]} Rc7 {[%clk 00:01:40]}
{[%emt 00:00:05]} 49. Qb5# {[%clk 00:01:34]} {[%emt 00:00:06]} 1-0

[Event "9e Open International de Porticcio"]
[Site "Porticcio, France"]
[Date "2024.07.04"]
[Round "8.6"]
[White "Yankelevich, Lev"]
[Black "Rakotomaharo, Fy Antenaina"]
[Result "1/2-1/2"]
[TimeControl "1h30+30s/move"]
[WhiteElo "2416"]
[BlackElo "2448"]

1. d4 {[%clk 01:30:30]} {[%emt 00:07:59]} d5 {[%clk 01:27:45]} {[%emt
00:03:22]} 2. c4 {[%clk 01:31:21]} {[%emt 00:00:07]} e6 {[%clk 01:28:11]}
{[%emt 00:00:04]} 3. Nc3 {[%clk 01:31:48]} {[%emt 00:00:03]} Nf6 {[%clk
01:26:52]} {[%emt 00:01:49]} 4. Bg5 {[%clk 01:32:12]} {[%emt 00:00:06]} Bb4
{[%clk 01:21:05]} {[%emt 00:06:17]} 5. e3 {[%clk 01:31:27]} {[%emt 00:01:15]}
c6 {[%clk 01:10:39]} {[%emt 00:10:56]} 6. Qb3 {[%clk 01:29:23]} {[%emt
00:02:34]} Qa5 {[%clk 01:02:10]} {[%emt 00:08:59]} 7. Bxf6 {[%clk 01:26:03]}
{[%emt 00:03:50]} gxf6 {[%clk 01:02:35]} {[%emt 00:00:05]} 8. Rc1 {[%clk
01:24:36]} {[%emt 00:01:58]} Nd7 {[%clk 01:01:24]} {[%emt 00:01:40]} 9. a3
{[%clk 01:22:47]} {[%emt 00:02:20]} Be7 {[%clk 01:01:24]} {[%emt 00:00:30]} 10.
cxd5 {[%clk 01:20:30]} {[%emt 00:02:47]} cxd5 {[%clk 01:01:40]} {[%emt
00:00:14]} 11. Nf3 {[%clk 01:19:46]} {[%emt 00:01:14]} Rg8 {[%clk 00:57:46]}
{[%emt 00:04:24]} 12. g3 {[%clk 01:13:19]} {[%emt 00:06:58]} a6 {[%clk
00:57:53]} {[%emt 00:00:22]} 13. Bd3 {[%clk 01:12:57]} {[%emt 00:00:51]} f5
{[%clk 00:58:15]} {[%emt 00:00:09]} 14. O-O {[%clk 01:12:36]} {[%emt 00:00:51]}
b5 {[%clk 00:51:18]} {[%emt 00:07:27]} 15. Nxd5 {[%clk 00:50:31]} {[%emt
00:22:35]} exd5 {[%clk 00:51:25]} {[%emt 00:00:22]} 16. Qxd5 {[%clk 00:49:38]}
{[%emt 00:01:22]} Rb8 {[%clk 00:40:15]} {[%emt 00:11:40]} 17. Bxf5 {[%clk
00:42:08]} {[%emt 00:08:01]} Qd8 {[%clk 00:40:18]} {[%emt 00:00:26]} 18. Ne5
{[%clk 00:37:33]} {[%emt 00:05:05]} Nxe5 {[%clk 00:40:04]} {[%emt 00:00:45]} 19.
Qxe5 {[%clk 00:37:54]} {[%emt 00:00:09]} Bxf5 {[%clk 00:39:52]} {[%emt
00:00:43]} 20. Qxf5 {[%clk 00:38:18]} {[%emt 00:00:06]} Rg6 {[%clk 00:40:03]}
{[%emt 00:00:18]} 21. Rc2 {[%clk 00:37:13]} {[%emt 00:01:35]} Qd7 {[%clk
00:38:10]} {[%emt 00:02:23]} 22. Qe5 {[%clk 00:36:12]} {[%emt 00:01:31]} Rc8
{[%clk 00:38:24]} {[%emt 00:00:15]} 23. Rfc1 {[%clk 00:36:02]} {[%emt
00:00:41]} Rxc2 {[%clk 00:29:38]} {[%emt 00:09:16]} 24. Rxc2 {[%clk 00:36:30]}
{[%emt 00:00:02]} f6 {[%clk 00:29:23]} {[%emt 00:00:44]} 25. Qh5 {[%clk
00:32:59]} {[%emt 00:04:01]} Qg4 {[%clk 00:29:41]} {[%emt 00:00:13]} 26. Qxg4
{[%clk 00:33:02]} {[%emt 00:00:27]} Rxg4 {[%clk 00:30:09]} {[%emt 00:00:02]} 27.
Rc6 {[%clk 00:33:27]} {[%emt 00:00:05]} a5 {[%clk 00:29:53]} {[%emt 00:00:45]}
28. Ra6 {[%clk 00:32:07]} {[%emt 00:01:50]} Bd8 {[%clk 00:27:11]} {[%emt
00:03:12]} 29. Ra7 {[%clk 00:31:35]} {[%emt 00:01:03]} Rg5 {[%clk 00:18:45]}
{[%emt 00:08:55]} 30. Rxh7 {[%clk 00:29:09]} {[%emt 00:02:56]} Be7 {[%clk
00:19:09]} {[%emt 00:00:06]} 31. Kf1 {[%clk 00:17:11]} {[%emt 00:12:29]} a4
{[%clk 00:17:09]} {[%emt 00:02:30]} 32. Ke2 {[%clk 00:15:35]} {[%emt 00:02:06]}
b4 {[%clk 00:17:35]} {[%emt 00:00:04]} 33. Rh8+ {[%clk 00:13:13]} {[%emt
00:02:52]} Bf8 {[%clk 00:17:36]} {[%emt 00:00:29]} 34. axb4 {[%clk 00:13:32]}
{[%emt 00:00:12]} Rb5 {[%clk 00:18:01]} {[%emt 00:00:04]} 35. Kd3 {[%clk
00:13:57]} {[%emt 00:00:05]} Rxb4 {[%clk 00:18:27]} {[%emt 00:00:04]} 36. Kc3
{[%clk 00:13:56]} {[%emt 00:00:31]} Rb7 {[%clk 00:17:29]} {[%emt 00:01:28]} 37.
Rh5 {[%clk 00:12:02]} {[%emt 00:02:25]} Rc7+ {[%clk 00:17:49]} {[%emt
00:00:10]} 38. Kd3 {[%clk 00:12:25]} {[%emt 00:00:05]} Rb7 {[%clk 00:18:18]}
{[%emt 00:00:02]} 39. Kc2 {[%clk 00:12:43]} {[%emt 00:00:12]} Rc7+ {[%clk
00:18:45]} {[%emt 00:00:04]} 40. Kb1 {[%clk 00:12:55]} {[%emt 00:00:18]} Rb7
{[%clk 00:19:11]} {[%emt 00:00:03]} 41. Ka2 {[%clk 00:12:40]} {[%emt 00:00:45]}
Rc7 {[%clk 00:19:34]} {[%emt 00:00:07]} 42. Rf5 {[%clk 00:12:38]} {[%emt
00:00:32]} Kf7 {[%clk 00:16:15]} {[%emt 00:03:49]} 43. Kb1 {[%clk 00:11:02]}
{[%emt 00:02:07]} Rb7 {[%clk 00:16:35]} {[%emt 00:00:10]} 44. Ka2 {[%clk
00:11:14]} {[%emt 00:00:18]} Rc7 {[%clk 00:17:02]} {[%emt 00:00:03]} 45. Kb1
{[%clk 00:10:57]} {[%emt 00:00:47]} Rb7 {[%clk 00:17:27]} {[%emt 00:00:05]} 46.
Ka2 {[%clk 00:11:23]} {[%emt 00:00:03]} Rc7 {[%clk 00:17:02]} {[%emt 00:00:55]}
1/2-1/2

[Event "9e Open International de Porticcio"]
[Site "Porticcio, France"]
[Date "2024.07.04"]
[Round "8.10"]
[White "Charni, Ilyes"]
[Black "Deladerriere, Helio"]
[Result "1/2-1/2"]
[TimeControl "1h30+30s/move"]
[WhiteElo "1858"]
[BlackElo "1850"]

1. e4 {[%clk 01:30:59]} {[%emt 00:33:47]} e5 {[%clk 01:29:06]} {[%emt
00:01:54]} 2. Nf3 {[%clk 01:31:27]} {[%emt 00:00:02]} Nc6 {[%clk 01:29:25]}
{[%emt 00:00:11]} 3. Bc4 {[%clk 01:31:56]} {[%emt 00:00:02]} Bc5 {[%clk
01:29:40]} {[%emt 00:00:14]} 4. O-O {[%clk 01:30:48]} {[%emt 00:01:38]} Nf6
{[%clk 01:28:22]} {[%emt 00:01:48]} 5. d3 {[%clk 01:30:30]} {[%emt 00:00:48]}
O-O {[%clk 01:27:35]} {[%emt 00:01:16]} 6. c3 {[%clk 01:30:27]} {[%emt
00:00:34]} d6 {[%clk 01:27:20]} {[%emt 00:00:45]} 7. a4 {[%clk 01:29:51]}
{[%emt 00:01:06]} a6 {[%clk 01:27:25]} {[%emt 00:00:24]} 8. Bb3 {[%clk
01:22:37]} {[%emt 00:07:44]} Be6 {[%clk 01:26:49]} {[%emt 00:01:05]} 9. Bc2
{[%clk 01:20:32]} {[%emt 00:02:36]} Ba7 {[%clk 01:25:53]} {[%emt 00:01:26]} 10.
Nbd2 {[%clk 01:14:37]} {[%emt 00:06:25]} Ne7 {[%clk 01:25:34]} {[%emt
00:00:49]} 11. h3 {[%clk 01:12:04]} {[%emt 00:03:03]} Ng6 {[%clk 01:25:44]}
{[%emt 00:00:21]} 12. Re1 {[%clk 01:10:39]} {[%emt 00:01:54]} Nh5 {[%clk
01:20:23]} {[%emt 00:05:52]} 13. Nf1 {[%clk 01:00:45]} {[%emt 00:10:23]} Nhf4
{[%clk 01:18:58]} {[%emt 00:01:55]} 14. Be3 {[%clk 00:55:56]} {[%emt 00:05:19]}
Bxh3 {[%clk 01:04:41]} {[%emt 00:14:48]} 15. gxh3 {[%clk 00:26:32]} {[%emt
00:29:54]} Nxh3+ {[%clk 01:04:17]} {[%emt 00:00:53]} 16. Kh2 {[%clk 00:26:26]}
{[%emt 00:00:35]} Nxf2 {[%clk 01:02:20]} {[%emt 00:02:28]} 17. Bxf2 {[%clk
00:26:48]} {[%emt 00:00:09]} Bxf2 {[%clk 01:02:41]} {[%emt 00:00:08]} 18. Re2
{[%clk 00:26:21]} {[%emt 00:00:56]} Ba7 {[%clk 01:02:03]} {[%emt 00:01:09]} 19.
Ng3 {[%clk 00:21:26]} {[%emt 00:05:24]} Nf4 {[%clk 00:57:15]} {[%emt 00:05:18]}
20. Re1 {[%clk 00:20:40]} {[%emt 00:01:15]} Qf6 {[%clk 00:56:52]} {[%emt
00:00:54]} 21. Nf5 {[%clk 00:20:08]} {[%emt 00:01:03]} g6 {[%clk 00:56:35]}
{[%emt 00:00:47]} 22. Nh6+ {[%clk 00:19:21]} {[%emt 00:01:16]} Kg7 {[%clk
00:55:13]} {[%emt 00:01:52]} 23. Ng4 {[%clk 00:19:10]} {[%emt 00:00:41]} Qe6
{[%clk 00:53:13]} {[%emt 00:02:29]} 24. Ng5 {[%clk 00:19:21]} {[%emt 00:00:20]}
Qe7 {[%clk 00:53:30]} {[%emt 00:00:14]} 25. Nh3 {[%clk 00:19:21]} {[%emt
00:00:30]} Qh4 {[%clk 00:50:27]} {[%emt 00:03:32]} 26. Qf3 {[%clk 00:19:40]}
{[%emt 00:00:11]} h5 {[%clk 00:49:55]} {[%emt 00:01:02]} 27. Ne3 {[%clk
00:19:34]} {[%emt 00:00:37]} Nxh3 {[%clk 00:49:17]} {[%emt 00:01:08]} 28. Ng2
{[%clk 00:16:56]} {[%emt 00:03:08]} Qf2 {[%clk 00:47:22]} {[%emt 00:02:24]} 29.
Qxh3 {[%clk 00:16:51]} {[%emt 00:00:35]} Qxc2 {[%clk 00:46:52]} {[%emt
00:01:01]} 30. Rf1 {[%clk 00:16:36]} {[%emt 00:00:44]} Qxb2 {[%clk 00:43:03]}
{[%emt 00:04:18]} 31. Qh4 {[%clk 00:13:55]} {[%emt 00:03:11]} Qe2 {[%clk
00:39:56]} {[%emt 00:03:38]} 32. Qf6+ {[%clk 00:13:19]} {[%emt 00:01:05]} Kg8
{[%clk 00:37:41]} {[%emt 00:02:45]} 33. Rf5 {[%clk 00:12:54]} {[%emt 00:00:55]}
Qd2 {[%clk 00:37:13]} {[%emt 00:00:59]} 34. Raf1 {[%clk 00:05:29]} {[%emt
00:07:54]} Be3 {[%clk 00:30:46]} {[%emt 00:06:57]} 35. R1f3 {[%clk 00:04:48]}
{[%emt 00:01:11]} Bf4+ {[%clk 00:29:02]} {[%emt 00:02:14]} 36. R3xf4 {[%clk
00:04:49]} {[%emt 00:00:29]} exf4 {[%clk 00:24:03]} {[%emt 00:05:29]} 37. Rxh5
{[%clk 00:05:11]} {[%emt 00:00:08]} gxh5 {[%clk 00:24:08]} {[%emt 00:00:24]} 38.
Qg5+ {[%clk 00:05:35]} {[%emt 00:00:06]} Kh8 {[%clk 00:24:30]} {[%emt
00:00:10]} 39. Qxh5+ {[%clk 00:06:03]} {[%emt 00:00:02]} Kg8 {[%clk 00:24:50]}
{[%emt 00:00:09]} 40. Qg5+ {[%clk 00:06:31]} {[%emt 00:00:02]} Kh8 {[%clk
00:25:10]} {[%emt 00:00:10]} 41. Qh5+ {[%clk 00:07:00]} {[%emt 00:00:02]} Kg8
{[%clk 00:25:31]} {[%emt 00:00:09]} 42. Qg5+ {[%emt 00:00:20]} 1/2-1/2

[Event "9e Open International de Porticcio"]
[Site "Porticcio, France"]
[Date "2024.07.05"]
[Round "9.1"]
[White "Lagarde, Maxime"]
[Black "Clarke, Brandon G I"]
[Result "1-0"]
[TimeControl "1h30+30s/move"]
[WhiteElo "2604"]
[BlackElo "2498"]

1. c4 {[%clk 01:30:59]} Nf6 {[%clk 01:30:46]} {[%emt 00:00:15]} 2. Nc3 {[%clk
01:31:25]} {[%emt 00:00:04]} g6 {[%clk 01:30:59]} {[%emt 00:00:17]} 3. Nf3
{[%clk 01:31:51]} {[%emt 00:00:04]} Bg7 {[%clk 01:31:18]} {[%emt 00:00:10]} 4.
e4 {[%clk 01:32:17]} {[%emt 00:00:05]} d6 {[%clk 01:31:42]} {[%emt 00:00:07]} 5.
d4 {[%clk 01:32:43]} {[%emt 00:00:04]} O-O {[%clk 01:32:04]} {[%emt 00:00:08]}
6. Be2 {[%clk 01:33:10]} {[%emt 00:00:02]} e5 {[%clk 01:32:18]} {[%emt
00:00:16]} 7. O-O {[%clk 01:33:36]} {[%emt 00:00:05]} exd4 {[%clk 01:32:28]}
{[%emt 00:00:20]} 8. Nxd4 {[%clk 01:34:01]} {[%emt 00:00:05]} Re8 {[%clk
01:32:41]} {[%emt 00:00:16]} 9. f3 {[%clk 01:34:22]} {[%emt 00:00:11]} c6
{[%clk 01:32:50]} {[%emt 00:00:20]} 10. Nc2 {[%clk 01:17:29]} {[%emt 00:17:23]}
Na6 {[%clk 01:26:49]} {[%emt 00:06:29]} 11. Kh1 {[%clk 01:16:58]} {[%emt
00:01:03]} Nc7 {[%clk 01:20:41]} {[%emt 00:06:38]} 12. Bg5 {[%clk 01:07:50]}
{[%emt 00:09:38]} d5 {[%clk 01:13:31]} {[%emt 00:07:40]} 13. cxd5 {[%clk
00:51:53]} {[%emt 00:16:27]} cxd5 {[%clk 01:13:19]} {[%emt 00:00:41]} 14. Qd2
{[%clk 00:49:56]} {[%emt 00:02:27]} dxe4 {[%clk 01:06:54]} {[%emt 00:06:55]} 15.
Qxd8 {[%clk 00:48:06]} {[%emt 00:02:21]} Rxd8 {[%clk 01:07:21]} {[%emt
00:00:03]} 16. fxe4 {[%clk 00:48:24]} {[%emt 00:00:12]} 1-0

[Event "9e Open International de Porticcio"]
[Site "Porticcio, France"]
[Date "2024.07.05"]
[Round "9.2"]
[White "Fedorchuk, Sergey A."]
[Black "Bailet, Pierre"]
[Result "1/2-1/2"]
[TimeControl "1h30+30s/move"]
[WhiteElo "2546"]
[BlackElo "2491"]

1. e4 {[%clk 01:30:56]} {[%emt 00:00:02]} e5 {[%clk 01:30:49]} {[%emt
00:00:11]} 2. Nf3 {[%clk 01:31:09]} {[%emt 00:00:17]} Nc6 {[%clk 01:31:04]}
{[%emt 00:00:14]} 3. Bb5 {[%clk 01:30:47]} {[%emt 00:00:52]} Nf6 {[%clk
01:30:55]} {[%emt 00:00:39]} 4. O-O {[%clk 01:29:04]} {[%emt 00:02:13]} Nxe4
{[%clk 01:31:02]} {[%emt 00:00:23]} 5. Re1 {[%clk 01:28:35]} {[%emt 00:00:59]}
Nd6 {[%clk 01:30:33]} {[%emt 00:00:59]} 6. Nxe5 {[%clk 01:28:28]} {[%emt
00:00:37]} Be7 {[%clk 01:30:05]} {[%emt 00:00:58]} 7. Bf1 {[%clk 01:28:21]}
{[%emt 00:00:38]} Nxe5 {[%clk 01:29:46]} {[%emt 00:00:49]} 8. Rxe5 {[%clk
01:28:38]} {[%emt 00:00:13]} O-O {[%clk 01:30:02]} {[%emt 00:00:13]} 9. d4
{[%clk 01:27:35]} {[%emt 00:01:33]} Bf6 {[%clk 01:28:04]} {[%emt 00:02:28]} 10.
Re1 {[%clk 01:26:47]} {[%emt 00:01:18]} Nf5 {[%clk 01:25:50]} {[%emt 00:02:43]}
11. c3 {[%clk 01:23:35]} {[%emt 00:03:43]} d5 {[%clk 01:24:55]} {[%emt
00:01:25]} 12. Bf4 {[%clk 01:17:20]} {[%emt 00:06:45]} c6 {[%clk 01:21:27]}
{[%emt 00:03:58]} 13. Nd2 {[%clk 01:15:06]} {[%emt 00:02:44]} Nh4 {[%clk
01:16:24]} {[%emt 00:05:32]} 14. Nf3 {[%clk 01:06:04]} {[%emt 00:09:33]} Bg4
{[%clk 01:10:44]} {[%emt 00:06:09]} 15. Be2 {[%clk 01:06:27]} {[%emt 00:00:08]}
Nxf3+ {[%clk 01:06:27]} {[%emt 00:04:47]} 16. Bxf3 {[%clk 01:06:50]} {[%emt
00:00:07]} Bxf3 {[%clk 01:06:25]} {[%emt 00:00:31]} 17. Qxf3 {[%clk 01:07:12]}
{[%emt 00:00:08]} Re8 {[%clk 01:02:22]} {[%emt 00:04:33]} 18. Re2 {[%clk
01:03:27]} {[%emt 00:04:16]} Rxe2 {[%clk 01:01:13]} {[%emt 00:01:39]} 19. Qxe2
{[%clk 01:03:53]} {[%emt 00:00:05]} Qe7 {[%clk 01:00:40]} {[%emt 00:01:02]} 20.
Re1 {[%clk 01:01:26]} {[%emt 00:02:57]} Re8 {[%clk 00:57:56]} {[%emt 00:03:13]}
21. Qxe7 {[%clk 00:59:10]} {[%emt 00:02:47]} Rxe7 {[%clk 00:58:15]} {[%emt
00:00:11]} 22. Rxe7 {[%clk 00:59:35]} {[%emt 00:00:06]} Bxe7 {[%clk 00:58:34]}
{[%emt 00:00:11]} 23. f3 {[%clk 00:59:49]} {[%emt 00:00:16]} f6 {[%clk
00:58:20]} {[%emt 00:00:44]} 24. Kf2 {[%clk 01:00:09]} {[%emt 00:00:10]} Kf7
{[%clk 00:58:43]} {[%emt 00:00:08]} 25. Ke2 {[%clk 01:00:25]} {[%emt 00:00:14]}
Ke6 {[%clk 00:58:58]} {[%emt 00:00:14]} 26. Kd3 {[%clk 01:00:47]} {[%emt
00:00:08]} Bf8 {[%clk 00:59:03]} {[%emt 00:00:25]} 27. Ke3 {[%clk 01:01:07]}
{[%emt 00:00:10]} Be7 {[%clk 00:59:25]} {[%emt 00:00:08]} 28. Kd3 {[%clk
01:01:32]} {[%emt 00:00:06]} Bf8 {[%clk 00:59:50]} {[%emt 00:00:05]} 29. Ke3
{[%clk 01:01:56]} {[%emt 00:00:06]} Be7 {[%clk 01:00:15]} {[%emt 00:00:04]} 30.
Kd3 {[%clk 01:02:22]} {[%emt 00:00:04]} Ke5 {[%emt 00:00:27]} 31. Ke4+ 1/2-1/2